bitfinex/quotes_SOLUSD_20251119
["timestamp","ask_amount","ask_price","bid_price","bid_amount"]
[1763573885771,7.22538626,131.73,131.68,9.08538626]
[1763573886094,7.58627051,131.82,131.68,9.08538626]
[1763573886095,0.66,131.78,131.69,7.90538626]
[1763573886262,0.66,131.81,131.71,7.22538626]
[1763573886463,7.22538626,131.77,131.72,7.22538626]
[1763573886776,7.22538626,131.78,131.7,0.68]
[1763573886980,7.22538626,131.84,131.73,7.22538626]
[1763573887170,7.22538626,131.79,131.76,7.58955676]
[1763573887369,7.22538626,131.78,131.74,2.54]
[1763573887585,0.66,131.82,131.75,0.68]
[1763573887793,7.22538626,131.79,131.75,0.68]
[1763573887975,7.22538626,131.79,131.7,1.99999999]
[1763573887976,18.12096,131.81,131.76,1.86]
[1763573888388,18.78096,131.83,131.77,0.68]
[1763573888580,0.66,131.86,131.77,0.68]
[1763573888778,0.66,131.86,131.77,7.90538626]
[1763573888983,7.22538626,131.82,131.78,7.22538626]
[1763573889181,7.22538626,131.81,131.79,7.58782912]
[1763573889379,7.22538626,131.8,131.75,7.22538626]
[1763573889597,7.22538626,131.84,131.76,1.86]
[1763573889901,0.66,131.85,131.77,7.22538626]
[1763573890090,7.22538626,131.81,131.78,1.86]
[1763573890301,0.66,131.87,131.79,0.68]
[1763573890622,0.66,131.89,131.79,7.90538626]
[1763573890919,0.66,131.91,131.81,7.22538626]
[1763573891206,7.22538626,131.88,131.83,7.58552681]
[1763573891374,0.66,131.91,131.83,7.58552681]
[1763573891573,7.22538626,131.87,131.84,0.68]
[1763573891973,7.22538626,131.85,131.82,0.68]
[1763573892179,7.22538626,131.83,131.79,0.68]
[1763573892484,0.66,131.88,131.8,2.54]
[1763573892679,7.22538626,131.85,131.8,9.76538626]
[1763573892895,7.22538626,131.84,131.81,0.68]
[1763573893399,7.22538626,131.83,131.81,0.68]
[1763573893580,7.22538626,131.84,131.81,8.26662883]
[1763573893984,0.66,131.88,131.82,0.68]
[1763573894177,0.66,131.9,131.82,0.68]
[1763573894383,7.22538626,131.86,131.83,1.86]
[1763573894578,0.66,131.9,131.83,1.86]
[1763573894789,0.2,131.92,131.84,7.90538626]
[1763573895112,7.22538626,131.9,131.85,7.22538626]
[1763573895305,0.2,131.92,131.86,14.80918726]
[1763573895487,7.22538626,131.9,131.86,8.263801]
[1763573895696,0.2,131.92,131.87,0.68]
[1763573896090,7.22538626,131.89,131.87,0.68]
[1763573896290,7.22538626,131.88,131.87,1.86]
[1763573896697,7.42538626,131.92,131.87,1.86]
[1763573897005,7.42538626,131.92,131.87,2.54]
[1763573897006,7.22538626,131.89,131.87,2.54]
[1763573897312,8.08538626,131.92,131.87,2.54]
[1763573897621,0.2,131.92,131.88,0.68]
[1763573897787,0.2,131.92,131.89,7.22538626]
[1763573898186,0.2,131.92,131.9,0.68]
[1763573898387,0.2,131.92,131.9,7.90538626]
[1763573898611,0.2,131.92,131.9,0.68]
[1763573898813,0.2,131.92,131.91,0.68]
[1763573899594,0.2,131.92,131.91,2.54]
[1763573899789,0.2,131.92,131.91,17.34631264]
[1763573899991,7.42538626,131.96,131.91,29.07324235]
[1763573900315,7.42538626,131.96,131.92,0.67]
[1763573901111,7.22538626,131.95,131.92,0.67]
[1763573901314,7.42538626,131.96,131.93,26.52922003]
[1763573901612,7.42538626,131.96,131.94,0.67]
[1763573901812,7.22538626,131.95,131.92,8.25010389]
[1763573902316,0.2,131.96,131.92,8.25010389]
[1763573902317,0.2,131.96,131.93,0.67]
[1763573902804,0.2,131.96,131.94,7.22538626]
[1763573903014,0.2,131.96,131.93,0.67]
[1763573903184,0.2,131.96,131.94,1.86]
[1763573903390,7.22538626,131.95,131.94,1.86]
[1763573903585,0.2,131.96,131.94,1.86]
[1763573903983,7.22538626,131.95,131.94,1.86]
[1763573905009,7.91538626,131.95,131.85,0.66]
[1763573905211,7.22538626,131.87,131.86,1.86]
[1763573905811,0.69,131.9,131.86,1.86]
[1763573906128,7.22538626,131.87,131.86,1.86]
[1763573906693,0.69,131.9,131.86,1.86]
[1763573906995,7.22538626,131.87,131.86,1.86]
[1763573907315,0.69,131.94,131.87,0.66]
[1763573907521,7.22538626,131.88,131.86,1.86]
[1763573907724,7.22538626,131.87,131.86,1.86]
[1763573908507,0.69,131.91,131.86,2.52]
[1763573908724,0.69,131.94,131.87,0.66]
[1763573908928,7.22538626,131.91,131.87,0.66]
[1763573909224,7.22538626,131.89,131.86,1.86]
[1763573909394,7.22538626,131.87,131.86,1.86]
[1763573909597,7.22538626,131.87,131.86,2.52]
[1763573909794,7.22538626,131.87,131.86,10.103801]
[1763573909991,7.22538626,131.87,131.86,2.52]
[1763573910531,7.22538626,131.88,131.86,10.10360366]
[1763573910702,7.22538626,131.92,131.86,10.10360366]
[1763573910899,7.22538626,131.89,131.87,0.66]
[1763573911630,7.22538626,131.89,131.87,8.24276012]
[1763573911838,7.22538626,131.88,131.84,70.34494083]
[1763573912128,7.22538626,131.92,131.84,70.34494083]
[1763573912129,0.69,131.93,131.85,2.52]
[1763573912311,0.69,131.93,131.81,10.54749546]
[1763573912312,7.22538626,131.86,131.81,10.54749546]
[1763573912509,7.22538626,131.92,131.83,0.66]
[1763573912709,25.70022706,131.94,131.84,1.86]
[1763573912710,0.69,131.91,131.84,1.86]
[1763573913016,7.22538626,131.86,131.83,0.66]
[1763573913231,7.22538626,131.85,131.83,0.66]
[1763573913541,18.12096,131.94,131.85,26.54531664]
[1763573913727,7.22538626,131.9,131.85,26.54531664]
[1763573913913,0.2,131.96,131.86,0.66]
[1763573913914,7.22538626,131.88,131.86,0.66]
[1763573914111,7.22538626,131.92,131.85,7.58437618]
[1763573914112,7.22538626,131.87,131.85,7.58437618]
[1763573914325,7.22538626,131.92,131.86,2.52]
[1763573914632,0.69,131.93,131.86,2.52]
[1763573915135,0.69,131.93,131.87,0.66]
[1763573915337,7.22538626,131.89,131.87,0.66]
[1763573915633,7.22538626,131.89,131.87,8.24311198]
[1763573915840,0.69,131.95,131.87,8.24311198]
[1763573916012,7.22538626,131.91,131.88,0.66]
[1763573916429,0.69,131.95,131.88,0.66]
[1763573916638,0.2,131.96,131.86,9.08538626]
[1763573916639,7.22538626,131.89,131.86,7.5836799]
[1763573916935,7.22538626,131.92,131.87,1.86]
[1763573917239,7.91538626,131.92,131.87,1.86]
[1763573917435,7.22538626,131.92,131.85,7.5842691]
[1763573917736,0.69,131.95,131.88,9.44261652]
[1763573917935,7.22538626,131.91,131.89,0.66]
[1763573918138,7.22538626,131.9,131.89,0.66]
[1763573918326,7.22538626,131.9,131.89,2.52]
[1763573918529,7.22538626,131.92,131.89,2.52]
[1763573918729,7.22538626,131.92,131.9,0.66]
[1763573919036,7.22538626,131.91,131.89,1.86]
[1763573919339,7.22538626,131.9,131.87,0.66]
[1763573919544,7.22538626,131.89,131.88,1.86]
[1763573919742,7.22538626,131.89,131.88,9.44265089]
[1763573919914,0.2,131.96,131.88,17.32803715]
[1763573920123,7.22538626,131.94,131.89,7.88538626]
[1763573920440,0.2,131.96,131.9,0.66]
[1763573920616,7.22538626,131.92,131.9,0.66]
[1763573921226,7.22538626,131.91,131.88,27.19927812]
[1763573921528,7.22538626,131.92,131.89,2.52]
[1763573921733,7.22538626,131.92,131.9,7.58150113]
[1763573922042,7.22538626,131.92,131.9,8.24150113]
[1763573922343,7.22538626,131.91,131.9,0.66]
[1763573922548,7.22538626,131.91,131.89,9.44189779]
[1763573922763,7.22538626,131.92,131.9,2.52]
[1763573923121,0.69,131.95,131.9,2.52]
[1763573923339,7.22538626,131.92,131.9,2.52]
[1763573923846,7.22538626,131.94,131.91,8.24092638]
[1763573924161,0.89,131.96,131.92,1.86]
[1763573924327,7.22538626,131.93,131.9,0.66]
[1763573924522,7.22538626,131.91,131.88,8.24265089]
[1763573924829,0.69,131.95,131.89,1.86]
[1763573925040,7.22538626,131.92,131.9,1.86]
[1763573925258,7.22538626,131.91,131.9,1.86]
[1763573925551,7.22538626,131.91,131.9,2.52]
[1763573925753,7.22538626,131.92,131.9,2.52]
[1763573925925,7.22538626,131.91,131.84,8.24495145]
[1763573926128,0.69,131.91,131.85,1.86]
[1763573926334,7.22538626,131.86,131.85,1.86]
[1763573926943,0.69,131.91,131.85,1.86]
[1763573927151,7.22538626,131.86,131.84,8.24495145]
[1763573927460,0.69,131.91,131.85,1.86]
[1763573927958,7.22538626,131.86,131.85,7.58437618]
[1763573928175,7.22538626,131.86,131.81,9.78882769]
[1763573928346,0.69,131.86,131.82,1.86]
[1763573928657,7.22538626,131.83,131.82,1.86]
[1763573928860,7.22538626,131.83,131.82,2.52]
[1763573929073,7.22538626,131.84,131.82,2.52]
[1763573929562,7.22538626,131.83,131.82,1.86]
[1763573929773,0.69,131.9,131.82,9.08538626]
[1763573929938,7.22538626,131.87,131.83,26.54934384]
[1763573930137,7.22538626,131.85,131.84,0.67]
[1763573930447,7.22538626,131.86,131.84,0.67]
[1763573930871,0.69,131.93,131.84,7.89538626]
[1763573931046,0.69,131.93,131.85,7.22538626]
[1763573931047,7.22538626,131.89,131.85,7.22538626]
[1763573931375,0.89,131.96,131.87,17.01421395]
[1763573931584,7.22538626,131.92,131.87,17.01421395]
[1763573931890,7.22538626,131.9,131.85,7.22538626]
[1763573932047,7.22538626,131.9,131.88,1.86]
[1763573932248,7.22538626,131.89,131.88,1.86]
[1763573932468,0.2,131.96,131.89,0.67]
[1763573932660,7.22538626,131.92,131.89,0.67]
[1763573933356,7.22538626,131.91,131.89,0.67]
[1763573934059,7.22538626,131.9,131.88,7.58242615]
[1763573934382,0.69,131.93,131.89,1.86]
[1763573934558,7.22538626,131.9,131.88,8.25242615]
[1763573934874,7.22538626,131.9,131.89,2.53]
[1763573935081,7.22538626,131.91,131.89,2.53]
[1763573935277,7.22538626,131.93,131.9,0.67]
[1763573935579,7.22538626,131.92,131.9,0.67]
[1763573935786,7.22538626,131.91,131.89,1.86]
[1763573935968,7.22538626,131.91,131.9,7.58150113]
[1763573937185,7.91538626,131.91,131.86,0.67]
[1763573937364,7.22538626,131.88,131.87,1.86]
[1763573938081,7.22538626,131.92,131.87,9.4432259]
[1763573938082,7.22538626,131.89,131.87,9.4432259]
[1763573938589,7.22538626,131.89,131.87,10.1132259]
[1763573938791,11.26964335,131.9,131.88,0.67]
[1763573939098,0.69,131.94,131.82,27.90978769]
[1763573939099,11.26964335,131.94,131.89,1.84]
[1763573939273,0.69,131.93,131.89,1.84]
[1763573939589,0.69,131.93,131.9,1.84]
[1763573940191,11.26964335,131.91,131.9,1.84]
[1763573940399,11.26964335,131.91,131.81,0.67]
[1763573940690,11.26964335,131.82,131.79,0.67]
[1763573940872,11.26964335,131.8,131.73,19.07779658]
[1763573941193,11.26964335,131.74,131.73,0.1]
[1763573941391,0.69,131.74,131.73,0.1]
[1763573941561,11.95964335,131.74,131.73,1.96]
[1763573941769,11.95964335,131.74,131.73,0.1]
[1763573943174,0.69,131.78,131.73,0.1]
[1763573943386,0.69,131.79,131.73,7.6912852]
[1763573943568,11.26964335,131.75,131.73,7.6912852]
[1763573943768,11.26964335,131.85,131.73,7.6912852]
[1763573943769,11.26964335,131.77,131.74,0.67]
[1763573943972,0.69,131.82,131.74,0.67]
[1763573944266,11.26964335,131.8,131.76,7.58955676]
[1763573944478,11.26964335,131.8,131.77,1.86]
[1763573944686,11.26964335,131.81,131.77,2.53]
[1763573944885,11.26964335,131.81,131.78,0.67]
[1763573945094,11.26964335,131.79,131.73,11.36964335]
[1763573945260,11.26964335,131.76,131.74,10.12069587]
[1763573945466,11.26964335,131.75,131.74,8.26069587]
[1763573945769,11.26964335,131.75,131.74,2.53]
[1763573945973,11.26964335,131.75,131.74,1.86]
[1763573946173,11.26964335,131.75,131.74,2.53]
[1763573946469,0.69,131.8,131.74,10.12070897]
[1763573946666,11.26964335,131.78,131.74,28.4274814]
[1763573946870,11.26964335,131.78,131.75,0.67]
[1763573947259,11.26964335,131.77,131.75,0.67]
[1763573947462,11.26964335,131.76,131.74,7.59070897]
[1763573947687,11.26964335,131.76,131.75,1.86]
[1763573948095,0.69,131.82,131.75,2.53]
[1763573948303,11.26964335,131.78,131.76,7.58955676]
[1763573948474,0.69,131.82,131.76,7.58955676]
[1763573948680,11.26964335,131.78,131.75,2.53]
[1763573948871,11.26964335,131.77,131.75,9.45005106]
[1763573949398,11.26964335,131.76,131.73,7.69125981]
[1763573949695,0.69,131.77,131.74,1.86]
[1763573949988,11.26964335,131.75,131.73,0.1]
[1763573950170,11.26964335,131.74,131.73,0.1]
[1763573950370,11.26964335,131.74,131.73,1.96]
[1763573950771,11.26964335,131.75,131.73,1.96]
[1763573950972,11.26964335,131.74,131.73,0.1]
[1763573951195,11.26964335,131.74,131.73,1.96]
[1763573951494,11.95964335,131.74,131.73,0.1]
[1763573952800,11.26964335,131.71,131.7,0.1]
[1763573953170,11.95964335,131.71,131.7,0.1]
[1763573953783,11.26964335,131.71,131.7,8.36301442]
[1763573953985,0.69,131.75,131.7,7.69301442]
[1763573954182,11.26964335,131.72,131.7,7.69301442]
[1763573954497,11.26964335,131.73,131.7,8.36301442]
[1763573954699,11.26964335,131.71,131.7,0.1]
[1763573954903,11.95964335,131.71,131.7,0.1]
[1763573955514,11.95964335,131.71,131.7,1.96]
[1763573955800,11.95964335,131.71,131.7,0.1]
[1763573956109,11.26964335,131.71,131.7,0.1]
[1763573957494,0.69,131.74,131.7,0.1]
[1763573957495,11.26964335,131.74,131.7,0.77]
[1763573957695,0.69,131.81,131.72,29.39060335]
[1763573957941,0.69,131.81,131.73,29.39060335]
[1763573958093,11.26964335,131.78,131.74,1.86]
[1763573958300,11.26964335,131.77,131.74,9.45045267]
[1763573958539,0.69,131.8,131.74,28.4272251]
[1763573958692,11.26964335,131.77,131.74,10.1205906]
[1763573958894,0.69,131.8,131.74,29.09736303]
[1763573959226,11.26964335,131.78,131.74,28.42736303]
[1763573959433,11.26964335,131.85,131.75,11.93964335]
[1763573959434,11.26964335,131.8,131.75,11.93964335]
[1763573959603,11.26964335,131.79,131.75,0.67]
[1763573959810,11.26964335,131.79,131.76,0.7]
[1763573960196,11.26964335,131.77,131.74,28.42736303]
[1763573960396,11.26964335,131.78,131.74,27.26736303]
[1763573960712,100.0,131.8,131.75,1.86]
[1763573960926,11.26964335,131.76,131.74,7.5906945]
[1763573961087,11.26964335,131.75,131.72,7.59186152]
[1763573961295,100.0,131.8,131.73,1.86]
[1763573961537,100.0,131.8,131.74,0.7]
[1763573961699,11.26964335,131.78,131.74,0.7]
[1763573962101,11.26964335,131.79,131.74,0.7]
[1763573962419,100.0,131.8,131.75,26.56546488]
[1763573962598,100.0,131.8,131.76,11.26964335]
[1763573962797,111.26964335,131.8,131.76,0.7]
[1763573963013,11.26964335,131.79,131.77,0.7]
[1763573963321,100.0,131.8,131.78,1.86]
[1763573963520,100.0,131.8,131.79,0.7]
[1763573963832,100.0,131.8,131.79,11.96964335]
[1763573963833,54.04645195,131.8,131.79,11.96964335]
[1763573963997,11.26964335,131.86,131.8,9.78882769]
[1763573964201,11.26964335,131.85,131.8,9.78882769]
[1763573964443,0.2,131.96,131.81,7.58667779]
[1763573964444,11.26964335,131.84,131.81,7.58667779]
[1763573964805,1.99999999,131.95,131.81,7.58667779]
[1763573964806,11.26964335,132.03,131.82,9.78882769]
[1763573965144,11.26964335,132.03,131.87,11.26964335]
[1763573965145,0.66,131.92,131.87,11.26964335]
[1763573965305,11.26964335,131.93,131.88,1.86]
[1763573965509,11.26964335,131.93,131.88,13.12964335]
[1763573965732,11.26964335,131.93,131.88,1.86]
[1763573966222,11.26964335,131.93,131.88,13.12964335]
[1763573966429,11.26964335,131.93,131.89,7.58207597]
[1763573966636,11.92964335,131.93,131.89,7.58207597]
[1763573967340,11.26964335,131.91,131.88,1.86]
[1763573967636,0.66,131.92,131.88,1.86]
[1763573967932,11.26964335,131.91,131.86,18.85325484]
[1763573968135,11.26964335,131.9,131.87,1.86]
[1763573968335,11.26964335,131.88,131.77,0.75889807]
[1763573968539,11.26964335,131.94,131.79,11.62882769]
[1763573968540,18.12096,131.9,131.79,11.62882769]
[1763573968743,11.26964335,131.83,131.79,1.84]
[1763573969339,0.66,131.86,131.79,11.62882769]
[1763573969524,0.66,131.89,131.81,11.26964335]
[1763573969726,0.66,131.89,131.8,9.78882769]
[1763573969928,0.66,131.89,131.79,1.84]
[1763573969929,11.26964335,131.85,131.81,1.86]
[1763573970329,11.26964335,131.85,131.82,1.86]
[1763573970532,0.66,131.86,131.82,1.86]
[1763573970739,11.26964335,131.85,131.82,9.44599527]
[1763573970942,18.12096,131.9,131.82,1.86]
[1763573971239,11.26964335,131.83,131.82,1.84]
[1763573971632,11.26964335,131.83,131.81,1.86]
[1763573971633,11.92964335,131.83,131.81,1.86]
[1763573971818,11.92964335,131.82,131.81,1.86]
[1763573972455,11.92964335,131.82,131.74,7.59070897]
[1763573972625,0.66,131.81,131.75,1.86]
[1763573972826,11.26964335,131.79,131.75,1.86]
[1763573973140,0.66,131.81,131.75,1.86]
[1763573973141,11.26964335,131.78,131.75,1.86]
[1763573973712,11.26964335,131.79,131.75,1.86]
[1763573974236,11.26964335,131.78,131.75,1.86]
[1763573974443,11.26964335,131.79,131.76,7.58955676]
[1763573974740,11.26964335,131.78,131.75,9.45002905]
[1763573975042,11.26964335,131.79,131.75,28.42536111]
[1763573975376,0.66,131.84,131.75,39.69500446]
[1763573975549,11.26964335,131.81,131.76,11.26964335]
[1763573975745,11.26964335,131.8,131.75,101.79500446]
[1763573976050,11.26964335,131.79,131.75,90.52536111]
[1763573976625,11.26964335,131.8,131.75,90.52536111]
[1763573976948,11.26964335,131.79,131.75,71.55006242]
[1763573977121,11.26964335,131.76,131.73,62.1]
[1763573977442,11.26964335,131.75,131.74,1.84]
[1763573977945,0.66,131.78,131.74,1.84]
[1763573978143,11.26964335,131.77,131.74,1.84]
[1763573978645,18.12096,131.81,131.74,1.84]
[1763573978646,0.66,131.81,131.75,26.56546488]
[1763573978946,11.26964335,131.79,131.75,26.56546488]
[1763573979321,11.26964335,131.79,131.75,7.59013282]
[1763573979923,11.92964335,131.79,131.75,7.59013282]
[1763573980127,11.26964335,131.79,131.75,26.56546488]
[1763573980326,0.66,131.83,131.76,11.26964335]
[1763573980538,11.26964335,131.82,131.76,11.26964335]
[1763573980745,11.26964335,131.82,131.77,26.56143278]
[1763573980926,11.92964335,131.82,131.78,1.84]
[1763573981123,11.26964335,131.82,131.78,1.84]
[1763573981522,11.26964335,131.81,131.78,1.84]
[1763573982041,11.26964335,131.82,131.79,1.84]
[1763573982642,11.26964335,131.81,131.79,1.84]
[1763573982886,11.26964335,131.81,131.79,9.42761632]
[1763573983167,11.92964335,131.8,131.74,26.56727101]
[1763573983347,11.26964335,131.79,131.75,1.84]
[1763573983969,11.26964335,131.8,131.75,1.84]
[1763573984343,0.66,131.82,131.75,13.10964335]
[1763573984344,11.26964335,131.81,131.75,13.10964335]
[1763573984662,11.26964335,131.81,131.76,26.56344868]
[1763573985032,11.92964335,131.81,131.76,26.56344868]
[1763573985259,11.26964335,131.8,131.76,26.56344868]
[1763573985871,0.66,131.85,131.78,11.26964335]
[1763573986070,0.66,131.87,131.8,21.05847104]
[1763573986445,11.26964335,131.86,131.8,21.05847104]
[1763573986867,0.66,131.9,131.83,11.26964335]
[1763573987068,11.26964335,131.89,131.84,1.84]
[1763573987575,11.26964335,131.88,131.84,1.84]
[1763573988051,0.66,131.87,131.82,11.26964335]
[1763573988258,11.92964335,131.87,131.83,1.84]
[1763573988564,0.66,131.92,131.83,1.84]
[1763573988756,0.66,131.92,131.85,26.54531664]
[1763573988998,11.26964335,131.94,131.86,9.78882769]
[1763573989275,11.26964335,131.93,131.87,11.26964335]
[1763573989485,11.26964335,131.93,131.88,1.84]
[1763573989662,11.92964335,131.93,131.88,1.84]
[1763573989854,0.71,131.93,131.88,1.84]
[1763573990051,11.97964335,131.93,131.88,1.84]
[1763573990579,11.26964335,131.91,131.88,1.84]
[1763573990750,11.26964335,131.92,131.88,1.84]
[1763573990952,11.97964335,131.92,131.88,9.42264798]
[1763573991279,0.71,131.94,131.88,7.58264798]
[1763573991483,0.71,131.94,131.89,22.89847104]
[1763573991780,11.26964335,131.93,131.89,1.84]
[1763573992073,11.97964335,131.95,131.89,22.89847104]
[1763573992278,0.71,131.95,131.89,22.89847104]
[1763573992481,0.2,131.96,131.91,11.26964335]
[1763573992663,0.2,131.96,131.92,11.26964335]
[1763573992865,0.2,131.96,131.9,9.78882769]
[1763573992866,0.2,131.96,131.95,11.26964335]
[1763573993062,0.2,131.98,131.94,17.36803035]
[1763573993063,0.2,131.98,131.94,36.31603701]
[1763573993377,11.97964335,132.05,131.98,9.78882769]
[1763573993570,11.26964335,132.04,131.99,1.84]
[1763573993765,0.71,132.05,131.99,1.84]
[1763573993773,11.26964335,132.03,131.99,1.84]
[1763573993966,11.26964335,132.04,131.99,1.84]
[1763573994370,11.97964335,132.04,131.99,1.84]
[1763573994569,11.26964335,132.0,131.97,22.41608319]
[1763573994769,11.26964335,132.0,131.94,26.52720932]
[1763573994770,11.26964335,132.0,131.98,1.84]
[1763573995074,0.71,132.0,131.99,1.84]
[1763573995277,11.26964335,132.0,131.99,1.84]
[1763573995674,0.71,132.0,131.99,1.84]
[1763573995861,11.97964335,132.0,131.92,71.88882769]
[1763573996067,11.26964335,131.98,131.93,13.10964335]
[1763573996490,0.71,131.97,131.93,1.84]
[1763573996660,11.26964335,131.96,131.93,1.84]
[1763573996865,11.26964335,131.96,131.93,30.8881897]
[1763573997063,29.39060335,132.03,131.91,9.78882769]
[1763573997064,11.26964335,131.95,131.91,9.78882769]
[1763573997366,11.97964335,131.95,131.92,1.84]
[1763573997563,11.97964335,131.95,131.9,69.68120424]
[1763573997769,0.71,131.95,131.91,1.84]
[1763573998084,11.97964335,131.95,131.91,1.84]
[1763573998286,11.26964335,131.97,131.91,13.10964335]
[1763573998476,11.26964335,131.96,131.91,11.62882769]
[1763573998675,0.71,131.98,131.92,9.78882769]
[1763573998985,11.26964335,131.97,131.93,7.57977715]
[1763573999278,11.26964335,131.97,131.93,26.52922003]
[1763573999672,11.97964335,131.97,131.93,26.52922003]
[1763574000189,18.12096,132.02,131.92,62.1]
[1763574000190,11.26964335,131.95,131.92,62.1]
[1763574000489,11.26964335,131.93,131.83,18.96325296]
[1763574000700,11.26964335,131.86,131.84,1.84]
[1763574000876,7.19755986,131.85,131.8,7.58725341]
[1763574001190,18.12096,131.88,131.81,1.84]
[1763574001372,0.71,131.84,131.81,1.84]
[1763574001687,7.19755986,131.85,131.82,1.84]
[1763574001882,7.19755986,131.84,131.82,1.84]
[1763574002262,18.12096,131.89,131.82,1.84]
[1763574002263,0.71,131.86,131.82,1.84]
[1763574002573,7.90755986,131.86,131.82,1.84]
[1763574002784,18.83096,131.92,131.83,9.78882769]
[1763574003089,7.19755986,132.0,131.86,7.19755986]
[1763574003389,7.19755986,131.89,131.87,1.84]
[1763574003702,0.71,131.91,131.87,1.84]
[1763574003865,7.19755986,131.89,131.87,1.84]
[1763574004061,7.90755986,131.9,131.87,1.84]
[1763574004292,7.19755986,131.89,131.87,1.84]
[1763574004492,7.19755986,131.89,131.84,26.54733009]
[1763574004493,7.19755986,131.88,131.84,7.58495145]
[1763574004697,7.19755986,131.85,131.81,30.38996725]
[1763574004902,7.19755986,131.83,131.78,7.58840491]
[1763574005103,7.19755986,131.81,131.77,7.58881707]
[1763574005305,7.19755986,131.79,131.76,7.5893839]
[1763574005609,7.19755986,131.84,131.77,1.84]
[1763574005815,7.19755986,131.78,131.77,1.84]
[1763574005970,7.19755986,131.78,131.7,7.69292296]
[1763574006173,7.19755986,131.73,131.71,1.84]
[1763574006377,0.71,131.77,131.7,0.1]
[1763574006378,7.19755986,131.72,131.7,0.1]
[1763574006587,0.71,131.72,131.71,1.84]
[1763574006916,0.71,131.72,131.7,0.1]
[1763574006917,7.90755986,131.72,131.7,0.1]
[1763574007115,7.90755986,131.72,131.68,0.1]
[1763574007116,7.19755986,131.71,131.68,0.1]
[1763574007402,7.19755986,131.69,131.68,0.1]
[1763574007569,0.71,131.73,131.68,7.69414708]
[1763574007772,7.19755986,131.73,131.68,7.69414708]
[1763574007980,1.99999999,131.81,131.68,26.67956627]
[1763574007981,7.19755986,131.74,131.68,26.67956627]
[1763574008276,7.19755986,131.69,131.68,0.1]
[1763574008487,0.71,131.73,131.68,9.53416767]
[1763574008709,0.71,131.76,131.69,9.78882769]
[1763574009009,7.19755986,131.73,131.7,7.59301442]
[1763574009302,0.71,131.75,131.7,26.57555048]
[1763574009667,7.19755986,131.75,131.7,26.57555048]
[1763574009865,0.71,131.74,131.7,26.57555048]
[1763574010099,7.19755986,131.74,131.7,26.57555048]
[1763574010286,7.19755986,131.74,131.71,1.84]
[1763574010287,0.71,131.74,131.71,1.84]
[1763574010498,7.19755986,131.72,131.71,1.84]
[1763574010683,7.90755986,131.73,131.71,1.84]
[1763574011004,7.90755986,131.73,131.71,9.43239794]
[1763574011302,7.19755986,131.74,131.71,9.43239794]
[1763574011505,0.71,131.8,131.71,28.41349276]
[1763574011727,7.19755986,131.75,131.71,90.51349276]
[1763574012005,7.19755986,131.76,131.71,1.84]
[1763574012300,0.71,131.82,131.72,17.8555737]
[1763574012491,7.19755986,131.81,131.72,0.86918615]
[1763574012669,0.71,131.82,131.72,0.86918615]
[1763574012670,7.19755986,131.78,131.72,10.65801384]
[1763574012995,7.90755986,131.8,131.74,26.5674814]
[1763574013174,7.19755986,131.79,131.74,26.5674814]
[1763574013493,7.19755986,131.77,131.74,7.59070897]
[1763574013673,7.19755986,131.78,131.75,1.84]
[1763574013877,7.19755986,131.77,131.75,1.84]
[1763574014075,7.19755986,131.78,131.75,1.84]
[1763574014298,7.19755986,131.79,131.76,1.84]
[1763574014673,7.90755986,131.78,131.76,1.84]
[1763574014995,7.19755986,131.77,131.76,9.42955676]
[1763574015198,0.71,131.78,131.76,9.42955676]
[1763574015401,7.19755986,131.79,131.76,1.84]
[1763574015605,25.31851986,131.84,131.71,46.89058202]
[1763574015606,7.19755986,131.77,131.71,46.89058202]
[1763574015773,7.19755986,131.77,131.72,1.84]